[Event "American Cup Open Champions 2024"]
[Site "Saint Louis"]
[Date "2024.03.17"]
[Round "3.3"]
[White "Robson, Ray"]
[Black "Aronian, Levon"]
[Result "1/2-1/2"]
[ECO "E48"]
[WhiteElo "2696"]
[BlackElo "2722"]
[Annotator "TA"]
[PlyCount "111"]
[EventDate "2024.03.11"]
[EventType "k.o."]
[EventCountry "USA"]
[SourceTitle "playchess.com"]
[Source "ChessBase"]
[SourceQuality "1"]
[TimeControl "5400+30"]

{[%evp 19,111,14,0,0,8,7,16,14,10,10,20,12,17,12,12,22,56,41,37,29,52,21,14,18,6,0,12,0,3,0,0,0,0,0,0,4,0,-31,0,0,0,0,0,0,0,0,0,0,0,0,0,0,0,0,0,0,0,0,0,0,0,0,0,0,0,0,0,0,0,0,0,0,0,0,0,0,0,0,0,0,0,0,0,0,0,0,0,0,0,0,0,0,0,0]} 1. d4 {[%emt 0:02:01]} Nf6 {[%emt 0:00:02]} 2. c4 {[%emt 0:00:15]} e6 {[%emt 0:00:05]} 3. Nc3 {[%emt 0:00:34]} Bb4 {[%emt 0:00:06]} 4. e3 {[%emt 0:00:32]} O-O {[%emt 0:00:06]} 5. Bd3 {[%emt 0:00:17]} c5 {[%emt 0:00:05]} 6. Nge2 {[%emt 0:00:19]} cxd4 {[%emt 0:00:43]} 7. exd4 {[%emt 0:00:17]} d5 {[%emt 0:00:03]} 8. cxd5 {[%emt 0:00:41]} Nxd5 {[%emt 0:00:05]} 9. a3 {[%emt 0:00:46]} Bd6 {[%emt 0:00:56]} 10. O-O {[%emt 0:00:42]} Nc6 {[%emt 0:00:05]} 11. Re1 {[%emt 0:00:35]} Qh4 {[%emt 0:00:06]} 12. g3 {[%emt 0:01:48]} Qh5 {[%emt 0:01:11]} 13. Nxd5 {[%emt 0:02:55]} exd5 {[%emt 0:00:11]} 14. Bf4 {[%emt 0:00:45]} Rd8 {[%emt 0:00:05]} 15. Qd2 {[%emt 0:01:09] [#] Droht stark Bxd6.} Bf8 {[%emt 0:00:05]} 16. Bc7 {[%emt 0:01:33]} Rd7 {[%emt 0:00:05]} 17. Ba5 {[%emt 0:00:50]} Nxa5 {[%emt 0:02:00]} 18. Qxa5 {[%emt 0:13:09]} Qg5 {[%emt 0:00:19]} 19. Nf4 {[%emt 0:03:38][%cal Be2f4,Bf4d3,Bd3c5][%mdl 32]} Qd8 {[%emt 0:00:22] Pariert Re8.} 20. Qb5 {[%emt 0:02:27]} g6 {[%emt 0:15:46] Verhindert Bf5} 21. Bf1 {[%emt 0:11:28]} a6 {[%emt 0:03:47]} 22. Qa4 {[%emt 0:13:38]} Bh6 {[%emt 0:10:00]} 23. Nd3 {[%emt 0:05:57]} Kf8 {[%emt 0:01:15]} 24. Bg2 {[%emt 0:09:43]} Rd6 {[%emt 0:01:18]} 25. h4 {[%emt 0:02:17]} Bf5 {[%emt 0:06:54]} 26. Nc5 {[%emt 0:00:56]} Qb6 {[%emt 0:07:47]} 27. b4 {[%emt 0:05:31]} Qc7 {[%emt 0:04:35]} 28. Qd1 {[%emt 0:01:30]} (28. Re5 $5) 28... b6 {[%emt 0:00:58]} (28... Rad8 $5) 29. g4 {[%emt 0:02:24] Die Stellung ist ausgeglichen.} Bd7 {[%emt 0:00:05]} 30. Nd3 {[%emt 0:00:52]} (30. g5 $5 Bg7 $8 31. Nxd7+ Qxd7 32. Qf3 $11) 30... Re8 {[%emt 0:09:12]} 31. Ne5 {[%emt 0:00:59]} Bf4 {[%emt 0:05:06]} 32. Qf3 {[%emt 0:01:07]} Bxe5 {[%emt 0:02:51]} 33. dxe5 {[%emt 0:00:11]} Rc6 {[%emt 0:03:07]} 34. Qxd5 {[%emt 0:01:20]} Rc2 {[%emt 0:07:42]} 35. Qf3 {[%emt 0:03:39]} Rxe5 {[%emt 0:01:46]} 36. Qf6 {[%emt 0:01:17]} Re6 {[%emt 0:00:05]} 37. Rxe6 {[%emt 0:03:46]} Bxe6 {[%emt 0:00:30]} 38. g5 {[%emt 0:00:14]} Rc1+ {[%emt 0:01:10]} 39. Rxc1 {[%emt 0:00:09]} Qxc1+ $11 {[%emt 0:00:03][%mdl 4096] Endspiel. KQB-KQB} 40. Kh2 {[%emt 0:00:52]} Qc7+ {[%emt 0:01:14]} 41. f4 {[%emt 0:00:38]} Qd6 {[%emt 0:02:22]} 42. Kg3 {[%emt 0:01:17]} Qd1 {[%emt 0:00:51]} 43. Kh2 {[%emt 0:01:58]} Qe1 {[%emt 0:00:21]} 44. Qd8+ {[%emt 0:00:59]} Kg7 {[%emt 0:00:07]} 45. Qd4+ {[%emt 0:00:21]} Kg8 {[%emt 0:00:05]} 46. Qd8+ {[%emt 0:00:54]} Kg7 {[%emt 0:00:10]} 47. Qd4+ {[%emt 0:00:06]} Kg8 {[%emt 0:00:04]} 48. f5 {[%emt 0:03:47]} Bxf5 {[%emt 0:00:04]} 49. h5 {[%emt 0:00:14]} Qe7 {[%emt 0:00:03] Es drohte Qd8+} (49... gxh5 50. Qd8+ (50. Qxb6 Qh4+ 51. Kg1 Qe1+ 52. Kh2 Qh4+ 53. Kg1 Qxg5 $17) 50... Kg7 51. Qf6+ (51. Qxb6 Qh4+ 52. Kg1 Qxg5 $17) 51... Kg8 52. Qxf5 $18) 50. h6 {[%emt 0:00:53][%csl Gh6][%cal Rd4g7] [#]} Qc7+ {[%emt 0:00:03]} 51. Kg1 {[%emt 0:00:23][%csl Gh6][%cal Rd4g7]} Kf8 {[%emt 0:00:04]} (51... Qc1+ 52. Kf2 Qc2+ 53. Ke3 Qc1+ 54. Kf2 Qc2+ 55. Ke3 Qc1+ 56. Ke2 Qc2+ 57. Ke3) 52. Qh8+ {[%emt 0:00:41]} Ke7 {[%emt 0:00:10] Und ...Qc1+ würde nun gewinnen.} 53. Qf6+ {[%emt 0:00:10]} Kf8 {[%emt 0:00:04]} 54. Qh8+ {[%emt 0:00:10]} Ke7 {[%emt 0:00:03] Weiss muss nun ...Qc1+ beachten.} 55. Qf6+ {[%emt 0:00:07]} Kf8 {[%emt 0:00:04]} 56. Qh8+ {[%emt 0:00:46] Gewichteter Fehlerwert: Weiß=0.02 (makellos) /Schwarz=0.02 (makellos) .  Ungenau:       	Weiß=2     	Schwarz=2     OK:         	Weiß=25    	Schwarz=32    Bester:       	Weiß=3     	---} 1/2-1/2

[Event "American Cup Open Champions 2024"]
[Site "Saint Louis"]
[Date "2024.03.19"]
[Round "4.1"]
[White "So, Wesley"]
[Black "Aronian, Levon"]
[Result "1/2-1/2"]
[ECO "C67"]
[WhiteElo "2757"]
[BlackElo "2722"]
[Annotator "TA"]
[PlyCount "70"]
[EventDate "2024.03.11"]
[EventType "k.o."]
[EventCountry "USA"]
[SourceTitle "playchess.com"]
[Source "ChessBase"]
[SourceQuality "1"]
[TimeControl "5400+30"]

{[%evp 18,70,19,12,15,15,11,24,12,14,23,4,10,8,9,5,7,3,3,9,5,0,0,0,19,10,4,0,0,0,0,0,0,0,0,0,0,0,0,0,0,0,0,0,0,0,0,0,0,0,0,0,0,0,0]} 1. e4 {[%emt 0:00:02]} e5 {[%emt 0:00:53]} 2. Nf3 {[%emt 0:00:19]} Nc6 {[%emt 0:00:06]} 3. Bb5 {[%emt 0:00:03]} Nf6 {[%emt 0:00:06]} 4. O-O {[%emt 0:01:03][%cal Bh1f1,Bf1e1,Be1e5][%mdl 32]} Nxe4 {[%emt 0:00:08]} 5. Re1 {[%emt 0:00:04]} Nd6 {[%emt 0:00:05]} 6. Nxe5 {[%emt 0:00:04]} Be7 {[%emt 0:00:06]} 7. Bf1 {[%emt 0:00:04]} Nxe5 {[%emt 0:00:10]} 8. Rxe5 {[%emt 0:00:05]} O-O {[%emt 0:00:06]} 9. d4 {[%emt 0:00:04]} Bf6 {[%emt 0:00:12]} 10. Re1 {[%emt 0:00:06]} Re8 {[%emt 0:00:05]} 11. Bf4 {[%emt 0:00:04]} Rxe1 {[%emt 0:00:04]} 12. Qxe1 {[%emt 0:00:04]} Ne8 {[%emt 0:00:07][%cal Bd6e8,Be8g7,Bg7f5][%mdl 32] White has an edge.} 13. c3 {[%emt 0:00:34]} d5 {[%emt 0:00:23]} 14. Bd3 {[%emt 0:00:06]} g6 {[%emt 0:00:40] The position is equal.} 15. Nd2 {[%emt 0:00:35][%cal Bb1d2,Bd2f3,Bf3e5][%mdl 32]} Ng7 {[%emt 0:00:13]} 16. Qe2 {[%emt 0:00:15]} c6 {[%emt 0:00:49]} 17. Re1 {[%emt 0:02:10]} Bf5 {[%emt 0:00:15]} 18. Bxf5 {[%emt 0:00:04]} Nxf5 {[%emt 0:00:05]} 19. Nf3 {[%emt 0:00:04]} Ng7 {[%emt 0:00:19]} 20. Be5 {[%emt 0:00:04]} Ne6 {[%emt 0:00:17]} 21. Bxf6 {[%emt 0:00:05]} Qxf6 {[%emt 0:00:05]} 22. Ne5 {[%emt 0:00:05]} Re8 {[%emt 0:00:13]} 23. Ng4 {[%emt 0:00:06]} Qd8 {[%emt 0:00:15]} 24. Qe5 {[%emt 0:00:07] [#] Threatens to win with Nf6+.} Ng7 {[%emt 0:00:06]} 25. Qxe8+ {[%emt 0:00:05]} Nxe8 {[%emt 0:00:05]} 26. Rxe8+ {[%emt 0:00:05]} Qxe8 {[%emt 0:00:05][%cal Re8e1]} 27. Nf6+ {[%emt 0:00:03]} Kf8 {[%emt 0:00:07]} 28. Nxe8 {[%emt 0:00:04]} Kxe8 $11 {[%emt 0:00:06][%mdl 4096] Endgame. KP-KP} 29. f4 {[%emt 0:00:04]} f5 {[%emt 0:00:07]} 30. Kf2 {[%emt 0:00:05]} Ke7 {[%emt 0:00:30]} 31. b4 {[%emt 0:00:06]} b5 {[%emt 0:00:07]} 32. Ke3 {[%emt 0:00:06]} Ke6 {[%emt 0:00:34]} 33. Kf2 {[%emt 0:00:05]} Ke7 {[%emt 0:00:05]} 34. Ke3 {[%emt 0:00:05]} Ke6 {[%emt 0:00:05]} 35. Kf2 {[%emt 0:00:04]} Ke7 {[%emt 0:00:05] Not much happened in this game.   Weighted Error Value: White=0.02 (flawless) /Black=0.02 (flawless) .  OK:         	White=9     	Black=10     Best:        	White=1     	Black=2} 1/2-1/2

[Event "American Cup Open Champions 2024"]
[Site "Saint Louis"]
[Date "2024.03.19"]
[Round "4.2"]
[White "Aronian, Levon"]
[Black "So, Wesley"]
[Result "1/2-1/2"]
[ECO "B50"]
[WhiteElo "2722"]
[BlackElo "2757"]
[Annotator "RC"]
[PlyCount "158"]
[EventDate "2024.03.11"]
[EventType "k.o."]
[EventCountry "USA"]
[SourceTitle "playchess.com"]
[Source "ChessBase"]
[SourceQuality "1"]
[TimeControl "900+10"]

1. e4 {[%emt 0:00:02]} c5 {[%emt 0:00:04]} 2. Nf3 {[%emt 0:00:03]} d6 {[%emt 0:00:02]} 3. Bc4 {[%emt 0:00:11]} Nf6 {[%emt 0:00:04]} 4. d3 {[%emt 0:00:01]} Nc6 {[%emt 0:00:02]} 5. O-O {[%emt 0:00:02]} e6 {[%emt 0:00:01]} 6. Nbd2 {[%emt 0:00:24]} Be7 {[%emt 0:00:04]} 7. a4 {[%emt 0:00:14]} O-O {[%emt 0:00:06]} 8. Re1 {[%emt 0:00:02]} a6 {[%emt 0:00:06]} 9. c3 {[%emt 0:00:48]} Qc7 {[%emt 0:00:19]} 10. Nf1 {[%emt 0:00:41]} d5 {[%emt 0:00:09]} 11. Ba2 {[%emt 0:00:05]} dxe4 {[%emt 0:00:24]} 12. dxe4 {[%emt 0:00:02]} b5 {[%emt 0:00:03]} 13. e5 {[%emt 0:02:16]} Nd7 {[%emt 0:00:06]} 14. Bb1 {[%emt 0:01:30]} Bb7 {[%emt 0:00:16]} 15. axb5 {[%emt 0:03:33]} axb5 {[%emt 0:00:02]} 16. Rxa8 {[%emt 0:00:02]} Rxa8 {[%emt 0:00:23]} 17. Qd3 {[%emt 0:00:31]} g6 {[%emt 0:00:04]} 18. Qxb5 {[%emt 0:00:07]} Ncxe5 {[%emt 0:01:24]} 19. Nxe5 {[%emt 0:00:20]} Nxe5 {[%emt 0:00:03]} 20. Bf4 {[%emt 0:00:22]} Bd6 {[%emt 0:01:28]} 21. Bxe5 {[%emt 0:00:57]} Bxe5 {[%emt 0:00:02]} 22. Rxe5 {[%emt 0:00:01]} Qxe5 {[%emt 0:00:07]} 23. Qxb7 {[%emt 0:00:02]} Rb8 {[%emt 0:00:11]} 24. Qe4 {[%emt 0:01:37]} Qxe4 {[%emt 0:00:43]} 25. Bxe4 {[%emt 0:00:01]} Rxb2 {[%emt 0:00:02]} 26. g4 {[%emt 0:00:34]} Rb3 {[%emt 0:02:26]} 27. c4 {[%emt 0:00:01]} Rc3 {[%emt 0:00:03]} 28. Ne3 {[%emt 0:00:02]} f5 {[%emt 0:00:06]} 29. gxf5 {[%emt 0:00:01]} gxf5 {[%emt 0:00:02]} 30. Bc6 {[%emt 0:00:51]} f4 {[%emt 0:00:02]} 31. Ng4 {[%emt 0:00:09]} Rxc4 {[%emt 0:00:03]} 32. Ne5 {[%emt 0:02:07]} Rd4 {[%emt 0:01:17]} 33. Bb5 {[%emt 0:00:54]} Kg7 {[%emt 0:00:04]} 34. Kg2 {[%emt 0:00:42]} Re4 {[%emt 0:01:21]} 35. Nd3 {[%emt 0:00:28]} c4 {[%emt 0:02:32]} 36. Kf3 {[%emt 0:00:02]} Rd4 {[%emt 0:00:03]} 37. Nxf4 {[%emt 0:00:02]} Kf6 {[%emt 0:00:04]} 38. Ne2 {[%emt 0:00:25]} Rd3+ {[%emt 0:00:04]} 39. Kg2 {[%emt 0:00:27]} Ra3 {[%emt 0:00:37]} 40. Bxc4 {[%emt 0:00:03]} h5 {[%emt 0:00:35]} 41. Nf4 {[%emt 0:00:55]} h4 {[%emt 0:00:59]} 42. Be2 {[%emt 0:00:05]} e5 {[%emt 0:00:18]} 43. Nd5+ {[%emt 0:00:04]} Kf5 {[%emt 0:00:18]} 44. Ne3+ {[%emt 0:00:13]} Kf4 {[%emt 0:00:05]} 45. Kh3 {[%emt 0:00:11]} Kg5 {[%emt 0:00:26]} 46. Bf3 {[%emt 0:00:16]} Kf4 {[%emt 0:00:06]} 47. Bg4 {[%emt 0:00:08]} Kg5 {[%emt 0:00:06]} 48. Bf3 {[%emt 0:00:06]} Kf4 {[%emt 0:00:03]} 49. Bd5 {[%emt 0:00:02]} Kg5 {[%emt 0:00:07]} 50. Be6 {[%emt 0:00:24]} Ra6 {[%emt 0:01:00]} 51. Bc4 {[%emt 0:00:03]} Rf6 {[%emt 0:00:26]} 52. Kg2 {[%emt 0:00:06]} Rf8 {[%emt 0:00:10]} 53. Be2 {[%emt 0:00:18]} Rd8 {[%emt 0:00:23]} 54. Bg4 {[%emt 0:00:15]} e4 {[%emt 0:00:30]} 55. h3 {[%emt 0:00:14]} Kf4 {[%emt 0:00:17]} 56. Kf1 {[%emt 0:00:02]} Rd3 {[%emt 0:00:03]} 57. Ke2 {[%emt 0:00:12]} Rb3 {[%emt 0:00:05]} 58. Nd5+ {[%emt 0:00:13]} Ke5 {[%emt 0:00:12]} 59. Ne7 {[%emt 0:00:04]} Rb2+ {[%emt 0:00:27]} 60. Ke1 {[%emt 0:00:06]} e3 {[%emt 0:00:08]} 61. fxe3 {[%emt 0:00:17]} Ke4 {[%emt 0:00:04]} 62. Nf5 {[%emt 0:00:03]} Ra2 {[%emt 0:00:14]} 63. Kf1 {[%emt 0:00:14]} Ra1+ {[%emt 0:00:04]} 64. Ke2 {[%emt 0:00:01]} Ra2+ {[%emt 0:00:02]} 65. Ke1 {[%emt 0:00:01]} Rb2 {[%emt 0:00:48]} 66. Kf1 {[%emt 0:00:27]} Ra2 {[%emt 0:00:03]} 67. Nxh4 {[%emt 0:00:02]} Kxe3 {[%emt 0:00:02]} 68. Ng6 {[%emt 0:00:28]} Ra6 {[%emt 0:00:13]} 69. Ne7 {[%emt 0:00:06]} Ra7 {[%emt 0:00:05]} 70. Nd5+ {[%emt 0:00:07]} Ke4 {[%emt 0:00:06]} 71. Nc3+ {[%emt 0:00:03]} Kf4 {[%emt 0:00:17]} 72. Ne2+ {[%emt 0:00:03]} Kg5 {[%emt 0:00:04]} 73. Nd4 {[%emt 0:00:02]} Kh4 {[%emt 0:00:23]} 74. Nf5+ {[%emt 0:00:36]} Kg5 {[%emt 0:00:04]} 75. Ke2 {[%emt 0:00:09]} Ra2+ {[%emt 0:00:10]} 76. Ke3 {[%emt 0:00:02]} Ra3+ {[%emt 0:00:01]} 77. Ke4 {[%emt 0:00:01]} Ra4+ {[%emt 0:00:02]} 78. Ke5 {[%emt 0:00:02]} Rxg4 {[%emt 0:00:02]} 79. hxg4 {[%emt 0:00:01]} Kxg4 {[%emt 0:00:02]} 1/2-1/2

[Event "American Cup Open Champions 2024"]
[Site "Saint Louis"]
[Date "2024.03.20"]
[Round "4.3"]
[White "Aronian, Levon"]
[Black "So, Wesley"]
[Result "1/2-1/2"]
[ECO "C54"]
[WhiteElo "2722"]
[BlackElo "2757"]
[Annotator "TA"]
[PlyCount "81"]
[EventDate "2024.03.11"]
[EventType "k.o."]
[EventCountry "USA"]
[SourceTitle "playchess.com"]
[Source "ChessBase"]
[SourceQuality "1"]
[TimeControl "5400+30"]

{[%evp 12,81,11,14,14,14,14,20,8,16,12,9,7,12,14,10,14,4,0,12,4,6,18,23,22,11,6,16,13,0,0,0,0,0,0,0,0,0,15,2,10,10,15,0,0,0,0,0,0,0,0,0,0,0,0,0,0,0,0,0,0,0,0,0,0,0,0,0,0,0,0,0]} 1. e4 {[%emt 0:01:27]} e5 {[%emt 0:00:22]} 2. Nf3 {[%emt 0:00:05]} Nc6 {[%emt 0:00:14]} 3. Bc4 {[%emt 0:00:06]} Bc5 {[%emt 0:00:08]} 4. O-O {[%emt 0:00:11]} Nf6 {[%emt 0:00:08]} 5. d3 {[%emt 0:00:04]} O-O {[%emt 0:00:06]} 6. Nbd2 {[%emt 0:00:05][%cal Bb1d2,Bd2f1,Bf1e3,Be3c4][%mdl 32]} d6 {[%emt 0:00:27]} 7. c3 {[%emt 0:00:11]} a5 {[%emt 0:00:23]} 8. Re1 {[%emt 0:00:47]} Be6 {[%emt 0:03:11]} 9. Bb5 {[%emt 0:01:43]} Qb8 {[%emt 0:00:26]} 10. Nf1 {[%emt 0:00:15]} Qa7 {[%emt 0:00:10]} 11. Be3 {[%emt 0:00:06]} Bxe3 {[%emt 0:01:56]} 12. Nxe3 {[%emt 0:00:05]} Ne7 {[%emt 0:00:06]} 13. a4 {[%emt 0:00:04]} Ng6 {[%emt 0:02:32]} 14. Bc4 {[%emt 0:01:13]} Bxc4 {[%emt 0:03:40]} (14... Nf4 {keeps more tension.} 15. Bxe6 fxe6 16. Nc4 Nd7) 15. Nxc4 {[%emt 0:00:06]} Qa6 {[%emt 0:00:09]} 16. g3 {[%emt 0:03:07]} Nxe4 {[%emt 0:04:34]} 17. Rxe4 {[%emt 0:00:54] [#] Re1 is the strong threat.} d5 {[%emt 0:00:08][%csl LRc4,LRe4]} 18. Rxe5 {[%emt 0:00:24] The position is equal.} dxc4 {[%emt 0:00:10]} 19. Re3 {[%emt 0:00:30]} cxd3 {[%emt 0:00:10]} 20. Qxd3 {[%emt 0:02:14]} Qxd3 {[%emt 0:02:08]} 21. Rxd3 {[%emt 0:00:06]} Rfd8 {[%emt 0:00:34]} 22. Rad1 {[%emt 0:00:38]} Rxd3 {[%emt 0:00:05]} 23. Rxd3 $11 {[%emt 0:00:05][%mdl 4096] Endgame. KRN-KRN} Nf8 {[%emt 0:00:04]} 24. Nd4 {[%emt 0:10:07]} g6 {[%emt 0:01:48]} 25. Kf1 {[%emt 0:00:55]} Ra6 {[%emt 0:01:46]} 26. Ke2 {[%emt 0:02:47]} Rb6 {[%emt 0:06:01]} 27. b4 {[%emt 0:00:35]} axb4 {[%emt 0:00:11]} 28. a5 {[%emt 0:00:04]} Ra6 {[%emt 0:00:05]} 29. cxb4 {[%emt 0:00:05]} c5 $1 {[%emt 0:00:04]} 30. bxc5 {[%emt 0:00:12] Strongly threatening Nb3.} Rxa5 {[%emt 0:00:04]} 31. c6 {[%emt 0:01:02]} bxc6 {[%emt 0:00:06]} 32. Nxc6 {[%emt 0:00:04]} Rc5 {[%emt 0:00:04]} 33. Nd4 {[%emt 0:00:16] Prevents Rc2+} Kg7 {[%emt 0:00:05]} 34. h4 {[%emt 0:00:15]} h5 {[%emt 0:00:05]} 35. Nf3 {[%emt 0:00:23]} Ne6 {[%emt 0:00:05]} 36. Nd4 {[%emt 0:00:08]} Nxd4+ {[%emt 0:00:05]} 37. Rxd4 {[%emt 0:00:05]} Rc7 {[%emt 0:00:04]} 38. Rd3 {[%emt 0:00:05]} Rc5 {[%emt 0:00:03]} 39. Rd4 {[%emt 0:00:04]} Rc7 {[%emt 0:00:02]} 40. Rd3 {[%emt 0:00:06]} Rc5 {[%emt 0:00:02]} 41. Rd4 {[%emt 0:00:16] A rather calm draw.   Weighted Error Value: White=0.02 (flawless) /Black=0.01 (flawless) .  OK:         	White=10    	Black=22     Best:        	White=2     	Black=2      Strong:       	---       	Black=1} 1/2-1/2

[Event "American Cup Open Champions 2024"]
[Site "Saint Louis"]
[Date "2024.03.20"]
[Round "4.4"]
[White "So, Wesley"]
[Black "Aronian, Levon"]
[Result "0-1"]
[ECO "E32"]
[WhiteElo "2757"]
[BlackElo "2722"]
[Annotator "TA"]
[PlyCount "72"]
[EventDate "2024.03.11"]
[EventType "k.o."]
[EventCountry "USA"]
[SourceTitle "playchess.com"]
[Source "ChessBase"]
[SourceQuality "1"]
[TimeControl "900+10"]

{[%evp 10,72,50,45,44,48,83,81,54,72,60,63,85,9,95,35,32,45,46,58,38,14,63,68,64,0,0,-62,21,30,39,31,73,0,9,0,0,0,0,0,0,0,0,0,0,0,0,0,0,0,0,0,0,0,0,0,0,0,0,-846,-842,-29988,-29989,-29989,-29977]} 1. d4 {[%emt 0:00:01]} Nf6 {[%emt 0:00:03]} 2. c4 {[%emt 0:00:01]} e6 {[%emt 0:00:02]} 3. Nc3 {[%emt 0:00:01]} Bb4 {[%emt 0:00:02][%cal Bf8b4,Bb4a5,Ba5c7,Bc7e5][%mdl 32]} 4. Qc2 {[%emt 0:00:01]} O-O {[%emt 0:00:03]} 5. e4 {[%emt 0:00:01][%cal Be2e4,Be4e5,Be5f6,Bf6g7][%mdl 32]} c5 {[%emt 0:00:08][%cal Bc7c5,Bc5d4,Bd4c3][%mdl 32]} 6. e5 $1 {[%emt 0:00:11]} cxd4 {[%emt 0:00:03]} 7. a3 $1 {[%emt 0:00:02]} Ba5 {[%emt 0:00:02]} 8. exf6 {[%emt 0:00:27]} dxc3 {[%emt 0:00:04] White is better.} 9. b4 {[%emt 0:00:01] [#] fxg7 would now be deadly.} Bc7 {[%emt 0:00:01]} 10. fxg7 {[%emt 0:00:05]} (10. Qxc3 Qxf6 11. Qxf6 gxf6 $15) 10... Re8 {[%emt 0:00:01]} 11. Nf3 {[%emt 0:00:12]} (11. Bd3 $16) 11... d5 {[%emt 0:00:17]} (11... Qf6 $1 $11 {keeps the balance.}) 12. Qxc3 {[%emt 0:04:02]} (12. Bg5 $16 Qd7 13. Be3 (13. Qxc3 Nc6 $11)) 12... e5 $14 {[%emt 0:02:14][%cal Be6e5,Be5e4][%mdl 32]} 13. cxd5 {[%emt 0:01:52] Strongly threatening Bb5.} e4 $1 {[%emt 0:00:03]} 14. Nd4 {[%emt 0:00:01]} Be5 {[%emt 0:00:01]} (14... Kxg7 15. Nf5+ (15. Ne6+ Kg6 16. Qg7+ Kh5 17. Be2+ Kh4 18. Qxh7#) 15... Kg6 16. Qg7+ Kxf5 17. g4#) 15. Bb2 {[%emt 0:00:42]} Nd7 {[%emt 0:00:33]} (15... a5 $11) 16. Bb5 {[%emt 0:02:05] And now 0-0 would win.} a6 {[%emt 0:00:02]} 17. Bxd7 {[%emt 0:00:23]} (17. Ba4 $14) 17... Bxd7 $11 {[%emt 0:00:04]} 18. O-O {[%emt 0:00:02]} ({Better is} 18. Qe3 $11) 18... Qh4 {[%emt 0:01:23]} (18... Kxg7 $2 {perishes.} 19. Qd2 $18) ({Black should play} 18... Bb5 $1 $15 19. Rfd1 Bd3) 19. g3 {[%emt 0:00:57]} Qh3 {[%emt 0:00:31][%cal Od7g4] [#] Threatens to win with ...Bg4!} 20. f4 {[%emt 0:00:37]} Bf6 {[%emt 0:02:52][%cal Oe4e3] This pair of bishops is nice.} 21. Qe3 {[%emt 0:00:23]} (21. Qb3 $16) 21... Bg4 {[%emt 0:00:13][%cal Oa8d8]} 22. Rf2 {[%emt 0:01:27]} Rad8 {[%emt 0:00:49]} 23. Nb3 {[%emt 0:00:02]} Rxd5 {[%emt 0:00:43]} 24. Re1 $1 {[%emt 0:00:56]} (24. Bxf6 $2 {too greedy.} Rd3 25. Re1 Rxe3 26. Rxe3 Qh6 $19) 24... Bxb2 {[%emt 0:02:41]} 25. Rxb2 {[%emt 0:00:01]} Qh6 {[%emt 0:00:02]} 26. Rd2 {[%emt 0:00:15] Inhibits Rd3.} Qd6 {[%emt 0:01:19]} 27. Rxd5 {[%emt 0:00:29]} Qxd5 {[%emt 0:01:10]} 28. Nd2 $1 {[%emt 0:00:03]} Bf5 {[%emt 0:00:44]} 29. Nf1 {[%emt 0:02:03]} Bh3 {[%emt 0:00:16]} ({Much worse is} 29... Kxg7 $6 30. Qc3+ Kg8 31. Ne3 $16) 30. Nd2 {[%emt 0:00:13][%cal Rd2e4]} Re6 $36 {[%emt 0:01:03][%mdl 2048] Black has good play.} 31. Rc1 {[%emt 0:00:15][%cal Be1c1,Bc1c5,Bc5g5][%mdl 32]} Kxg7 {[%emt 0:00:26]} 32. Rc5 {[%emt 0:00:28]} Qd3 {[%emt 0:00:11]} 33. Rg5+ {[%emt 0:00:08]} Kf8 {[%emt 0:01:11] The board is on fire.} 34. Qc5+ {[%emt 0:00:40][%mdl 8192]} (34. Qxd3 $11 exd3 35. Re5) 34... Rd6 $19 {[%emt 0:00:03] Active counter play!} 35. Rh5 {[%emt 0:00:36]} Qxd2 {[%emt 0:00:12][%cal Rd2e1]} 36. Rxh3 {[%emt 0:00:02]} b6 {[%emt 0:00:09] Weighted Error Value: White=0.38/Black=0.14 (very precise) .  Loses game:     	White=1     	---        Mistake:       	White=5     	Black=3      Inaccurate:     	White=1     	Black=2      OK:         	White=10    	Black=15     Best:        	White=1     	Black=2      Strong:       	White=3     	Black=1} 0-1